fUSD/lending_fUSD_20260402
["ID","MTS","AMOUNT","RATE_DAILY","PERIOD"]
[419281077,1775107845385,-152.0,0.00019189,14]
[419281078,1775107845394,-244.9105,0.000192,22]
[419281079,1775107845404,-162.0,0.00019222,3]
[419281080,1775107845413,-150.99,0.00019339,2]
[419281081,1775107845423,-299.99,0.00019339,7]
[419281082,1775107845433,-9999.99,0.00019339,2]
[419281083,1775107845443,-157.42,0.00019374,2]
[419281084,1775107845452,-152.0,0.00019495,15]
[419281085,1775107845462,-176.75,0.0001955,2]
[419281086,1775107845471,-154.0,0.00019625,3]
[419281087,1775107845480,-2000.0,0.00019736,2]
[419281088,1775107845490,-175.92048462,0.00019796,2]
[419281089,1775107845500,-152.0,0.000198,16]
[419281090,1775107845510,-250.79501656,0.000198,5]
[419281091,1775107845520,-1186.01,0.00019873,2]
[419281092,1775107845530,-2000.0,0.0002,3]
[419281093,1775107845539,-387.12,0.0002,30]
[419281094,1775107845549,-200.0,0.0002,10]
[419281095,1775107845558,-298.16729755,0.0002,20]
[419281096,1775107845567,-200.0,0.0002,2]
[419281097,1775107845577,-2000.0,0.000201,2]
[419281098,1775107845587,-300.0,0.000201,10]
[419281099,1775107845596,-150.0,0.00020333,30]
[419281100,1775107845605,-276.8448,0.000204,27]
[419281101,1775107845615,-8080.80861012,0.00020596,2]
[419281102,1775107845624,-2160.04836291,0.00020596,2]
[419281103,1775107845634,-352.08,0.00020748,2]
[419281104,1775107845643,-164.68,0.00020766,2]
[419281105,1775107845652,-1500.0,0.00020836,7]
[419281106,1775107845661,-3000.0,0.00020836,7]
[419281107,1775107845671,-150.0,0.00020899,5]
[419281108,1775107845681,-201.0,0.00021,2]
[419281109,1775107845690,-4206.7751855,0.00021078,2]
[419281110,1775107845699,-161.11,0.00021241,2]
[419281111,1775107845709,-176.04,0.00021345,2]
[419281112,1775107845718,-627.0,0.00021345,10]
[419281113,1775107845727,-201.88,0.00021421,3]
[419281114,1775107845736,-154.0,0.00021438,3]
[419281116,1775107845746,-312.9432,0.000215,32]
[419281117,1775107845755,-1131.03,0.00021528,2]
[419281118,1775107845764,-5034.79,0.00021528,2]
[419281119,1775107845774,-2660.7,0.00021528,2]
[419281120,1775107845784,-466.63,0.00021528,2]
[419281121,1775107845793,-540.38,0.00021528,2]
[419281122,1775107845804,-2000.0,0.0002153,2]
[419281123,1775107845823,-150.0,0.00021917,2]
[419281124,1775107845834,-5000.0,0.00021918,2]
[419281125,1775107845844,-500.0,0.00021918,2]
[419281126,1775107845855,-151.615039,0.00021918,2]
[419281127,1775107845864,-151.0,0.00021918,2]
[419281128,1775107845874,-151.615039,0.00021918,2]
[419281129,1775107845885,-151.615039,0.00021918,2]
[419281130,1775107845896,-151.615037,0.00021918,2]
[419281131,1775107845906,-168.0,0.00022,2]
[419281132,1775107845919,-381.0,0.00022,2]
[419281133,1775107845929,-467.0,0.00022,2]
[419281134,1775107845938,-1598.0,0.00022,2]
[419281135,1775107845948,-464.0,0.00022,2]
[419281136,1775107845958,-209.0,0.00022,2]
[419281137,1775107845968,-199.7,0.00022127,30]
[419281138,1775107845978,-1263.0,0.00022163,2]
[419281139,1775107845988,-1217.0,0.00022163,2]
[419281140,1775107845998,-925.0,0.00022163,2]
[419281141,1775107846009,-6016.0,0.00022163,2]
[419281142,1775107846018,-1346.0,0.00022163,2]
[419281143,1775107846028,-157.42,0.00022309,2]
[419281144,1775107846038,-1350.0,0.00022316,2]
[419281145,1775107846047,-1350.0,0.00022316,2]
[419281146,1775107846057,-1350.0,0.00022316,2]
[419281147,1775107846067,-1350.0,0.00022316,2]
[419281148,1775107846076,-1350.0,0.00022316,2]
[419281149,1775107846086,-1350.0,0.00022316,2]
[419281150,1775107846095,-1350.0,0.00022316,2]
[419281151,1775107846105,-1350.0,0.00022316,2]
[419281152,1775107846115,-1350.0,0.00022316,2]
[419281153,1775107846125,-1340.0,0.00022316,2]
[419281154,1775107846135,-387.12,0.00022426,30]
[419281155,1775107846145,-162.0,0.00022444,3]
[419281156,1775107846154,-353.7485,0.000227,37]
[419281157,1775107846164,-2500.0,0.00022859,2]
[419281158,1775107846173,-1115.0,0.0002286,2]
[419281159,1775107846183,-150.0,0.0002294,120]
[419281160,1775107846192,-168.0,0.00023,2]
[419281161,1775107846202,-381.0,0.00023,2]
[419281162,1775107846212,-467.0,0.00023,2]
[419281163,1775107846222,-1598.0,0.00023,2]
[419281164,1775107846232,-464.0,0.00023,2]
[419281165,1775107846242,-209.0,0.00023,2]
[419281166,1775107846252,-1500.0,0.00023028,7]
[419281167,1775107846262,-3000.0,0.00023028,7]
[419281168,1775107846272,-1250.0,0.0002323,2]
[419281169,1775107846282,-1250.0,0.0002323,2]
[419281170,1775107846291,-1250.0,0.0002323,2]
[419281171,1775107846301,-1250.0,0.0002323,2]
[419281172,1775107846315,-1250.0,0.0002323,2]
[419281173,1775107846325,-1250.0,0.0002323,2]
[419281174,1775107846335,-1250.0,0.0002323,2]
[419281175,1775107846345,-1250.0,0.0002323,2]
[419281176,1775107846355,-1250.0,0.0002323,2]
[419281177,1775107846365,-1190.0,0.0002323,2]
[419281178,1775107846376,-154.0,0.0002325,3]
[419281179,1775107846386,-1000.0,0.00023288,2]
[419281180,1775107846396,-550.0,0.00023416,2]
[419281181,1775107846406,-550.0,0.00023416,2]
[419281182,1775107846416,-550.0,0.00023416,2]
[419281183,1775107846426,-550.0,0.00023416,2]
[419281184,1775107846436,-550.0,0.00023416,2]
[419281185,1775107846446,-550.0,0.00023416,2]
[419281186,1775107846455,-550.0,0.00023416,2]
[419281187,1775107846470,-550.0,0.00023416,2]
[419281188,1775107846483,-550.0,0.00023416,2]
[419281189,1775107846496,-549.0,0.00023416,2]
[419281190,1775107846508,-4412.41190933,0.00023497,2]
[419281191,1775107846583,-500.0,0.00016164,2]
[419281192,1775107846595,-3668.39670079,0.00023497,2]
[419281193,1775107846605,-2160.04836291,0.00023497,2]
[419281194,1775107846616,-894.29572653,0.00023577,2]
[419281195,1775107846629,-124.40427347,0.00023577,2]
[419281196,1775107846640,-164.68,0.00023667,2]
[419281197,1775107846652,-380.79455953,0.000238,2]
[419281198,1775107846666,-513.92439638,0.000238,2]
[419281200,1775107846716,-2469.0,0.00016163,2]
[419281202,1775107846728,-1105.28104409,0.000238,2]
[419281204,1775107846740,-399.8744,0.000239,42]
[419281206,1775107846753,-249.62,0.00023921,30]
[419281209,1775107846767,-168.0,0.00024,2]
[419281211,1775107846779,-381.0,0.00024,2]
[419281213,1775107846791,-467.0,0.00024,2]
[419281215,1775107846807,-1598.0,0.00024,2]
[419281218,1775107846820,-464.0,0.00024,2]
[419281220,1775107846833,-209.0,0.00024,2]
[419281222,1775107846845,-1115.0,0.00024063,2]
[419281225,1775107846857,-164.68,0.00024333,2]
[419281227,1775107846869,-550.0,0.00024583,11]
[419281229,1775107846880,-1500.0,0.00024658,2]
[419281231,1775107846891,-1000.0,0.00024658,2]
[419281233,1775107846902,-433.144636,0.00024658,2]
[419281235,1775107846913,-433.144636,0.00024658,2]
[419281238,1775107846925,-433.144636,0.00024658,2]
[419281240,1775107846935,-433.144636,0.00024658,2]
[419281242,1775107846946,-433.144636,0.00024658,2]
[419281244,1775107846957,-433.144636,0.00024658,2]
[419281246,1775107846969,-433.144636,0.00024658,2]
[419281248,1775107846980,-433.144636,0.00024658,2]
[419281252,1775107846991,-433.144636,0.00024658,2]
[419281254,1775107847002,-433.144636,0.00024658,2]
[419281256,1775107847015,-433.144636,0.00024658,2]
[419281258,1775107847025,-433.144636,0.00024658,2]
[419281260,1775107847035,-433.144636,0.00024658,2]
[419281262,1775107847046,-433.144636,0.00024658,2]
[419281264,1775107847056,-433.144636,0.00024658,2]
[419281266,1775107847066,-433.144636,0.00024658,2]
[419281268,1775107847078,-433.144636,0.00024658,2]
[419281271,1775107847090,-433.144636,0.00024658,2]
[419281273,1775107847101,-433.144637,0.00024658,2]
[419281275,1775107847112,-150.0,0.00024658,2]
[419281277,1775107847123,-300.0,0.0002475,2]
[419281279,1775107847136,-150.0,0.0002475,7]
[419281282,1775107847148,-150.0,0.0002475,2]
[419281284,1775107847159,-175.92048462,0.00024797,2]
[419281286,1775107847170,-387.12,0.00024852,60]
[419281288,1775107847181,-500.0,0.00025,7]
[419281290,1775107847193,-300.0,0.00025,2]
[419281292,1775107847204,-1299.842535,0.00025,3]
[419281295,1775107847215,-324.25,0.00025,120]
[419281297,1775107847225,-306.43572183,0.00025,120]
[419281299,1775107847237,-168.0,0.00025,2]
[419281301,1775107847249,-381.0,0.00025,2]
[419281304,1775107847263,-467.0,0.00025,2]
[419281306,1775107847274,-1598.0,0.00025,2]
[419281308,1775107847286,-464.0,0.00025,2]
[419281310,1775107847297,-209.0,0.00025,2]
[419281313,1775107847309,-154.0,0.00025063,3]
[419281315,1775107847320,-452.0148,0.000251,47]
[419281317,1775107847331,-1263.0,0.00025163,2]
[419281319,1775107847342,-500.0,0.00025163,120]
[419281321,1775107847352,-1217.0,0.00025163,2]
[419281323,1775107847361,-925.0,0.00025163,2]
[419281324,1775107847371,-4671.071,0.00025163,2]
[419281325,1775107847381,-1346.0,0.00025163,2]
[419281326,1775107847391,-1500.0,0.0002522,7]
[419281327,1775107847401,-3000.0,0.0002522,7]
[419281328,1775107847411,-2808.0,0.00025228,3]
[419281329,1775107847423,-157.42,0.00025245,2]
[419281330,1775107847435,-1583.0,0.0002529,3]
[419281331,1775107847446,-1115.0,0.00025329,2]
[419281332,1775107847457,-3.75064951,0.00025398,120]
[419281333,1775107849685,-146.24935049,0.00025398,120]
[419281334,1775107849694,-162.0,0.00025667,3]
[419281335,1775107849703,-299.54,0.00025715,30]
[419281336,1775107849712,-321.65945066,0.00025868,3]
[419281337,1775107849748,-862.91952571,0.00025868,3]
[419281338,1775107850043,-331.92918329,0.00016164,2]
[419281339,1775107850054,-168.07081671,0.00016164,2]
[419281340,1775107850065,-164.85240241,0.00016164,2]
[419281341,1775107850078,-421.52664841,0.00016164,2]
[419281342,1775107850087,-216.03335158,0.000163,2]
[419281343,1775107850102,-129.39164842,0.000163,2]
[419281344,1775107850111,-1000.0,0.00016307,2]
[419281345,1775107850121,-1000.0,0.00016307,2]
[419281346,1775107850131,-1000.0,0.00016307,2]
[419281347,1775107850140,-1780.49277039,0.000164,2]
[419281348,1775107850155,-219.50722961,0.000164,2]
[419281349,1775107850164,-1866.14787713,0.00019163,2]
[419281355,1775108378277,7000.0,0.00016101,120]
[419281378,1775109033987,-679.13,0.00011507,2]
[419281379,1775109033997,-196.0914,0.000129,2]
[419281380,1775109034008,-132.4945,0.000129,2]
[419281381,1775109034018,-571.23252952,0.000132,2]
[419281382,1775109034041,-816.11829527,0.000132,2]
[419281383,1775109034052,-20480.0,0.000132,2]
[419281384,1775109034064,-3710.00000002,0.000132,2]
[419281385,1775109034076,-784.80151804,0.000132,2]
[419281386,1775109034096,-400.0,0.000132,2]
[419281387,1775109034108,-1317.98075929,0.000132,2]
[419281388,1775109034120,-309.39834783,0.000132,2]
[419281389,1775109034150,-258.87161287,0.000132,2]
[419281390,1775109034161,-436.37933376,0.000132,2]
[419281391,1775109034204,-9618.62640181,0.000132,2]
[419281392,1775109034216,-9096.63343575,0.000132,2]
[419281393,1775109034225,-543.0,0.000135,2]
[419281394,1775109034235,-2716.13,0.00013673,2]
[419281395,1775109034244,-150.0,0.00013699,2]
[419281396,1775109034254,-166.66,0.00013699,2]
[419281397,1775109034263,-200.0,0.00013699,2]
[419281398,1775109034272,-300.0,0.00013765,2]
[419281399,1775109034282,-1500.0,0.00013766,2]
[419281400,1775109034292,-1965.12,0.00013766,2]
[419281401,1775109034301,-166.66,0.00013885,2]
[419281402,1775109034311,-2000.0,0.00013979,2]
[419281404,1775109034321,-166.66,0.00014071,2]
[419281406,1775109034330,-150.0,0.000142,2]
[419281408,1775109034339,-166.66,0.00014258,2]
[419281410,1775109034348,-200.0,0.0001439,2]
[419281412,1775109034357,-166.66,0.00014444,2]
[419281414,1775109034366,-1965.12,0.00014455,2]
[419281416,1775109034376,-178.99023576,0.00014499,2]
[419281417,1775109034385,-207.28999999,0.00014499,2]
[419281419,1775109034395,-504.34724751,0.00014573,2]
[419281421,1775109034404,-391.2975008,0.00014594,2]
[419281423,1775109034413,-500.0,0.00014594,2]
[419281425,1775109034422,-500.0,0.00014594,2]
[419281427,1775109034431,-245.29173004,0.00014594,2]
[419281429,1775109034440,-500.0,0.00014594,2]
[419281431,1775109034448,-517.47383307,0.00014594,2]
[419281433,1775109034458,-557.05389591,0.00014594,2]
[419281435,1775109034466,-500.0,0.00014594,2]
[419281437,1775109034475,-500.0,0.00014594,2]
[419281439,1775109034484,-500.0,0.00014594,2]
[419281440,1775109034493,-500.0,0.00014594,2]
[419281441,1775109034502,-300.0,0.00014594,2]
[419281442,1775109034511,-2500.0,0.00014595,2]
[419281443,1775109034519,-78110.42135684,0.00014595,2]
[419281444,1775109034531,-7512.03187134,0.00014595,2]
[419281445,1775109034550,-533.12361376,0.00014595,2]
[419281446,1775109034562,-3153.1950966,0.00014595,2]
[419281447,1775109034573,-3938.67971,0.00014595,2]
[419281448,1775109038248,-951622.52965146,0.00014595,2]
[419281449,1775109038258,-150.0,0.00014599,2]
[419281450,1775109038267,-2375.34344915,0.000146,2]
[419281451,1775109038276,-8189.5488644,0.000146,2]
[419281452,1775109038286,-4206.7751855,0.000146,2]
[419281453,1775109038297,-2000.0,0.000146,5]
[419281454,1775109038307,-166.66,0.0001463,2]
[419281455,1775109038316,-500.0,0.00014673,2]
[419281456,1775109038325,-500.0,0.00014673,2]
[419281457,1775109038334,-500.0,0.00014673,2]
[419281458,1775109038343,-500.0,0.00014673,2]
[419281459,1775109038351,-500.0,0.00014673,2]
[419281460,1775109038362,-509.88873086,0.00014673,2]
[419281461,1775109038371,-223.33620162,0.00014685,2]
[419281462,1775109038380,-284.87,0.00014694,2]
[419281463,1775109038389,-500.0,0.00014694,2]
[419281464,1775109038399,-568.37,0.00014694,2]
[419281465,1775109038408,-1844.079,0.00014695,2]
[419281466,1775109038418,-184.904,0.00014695,2]
[419281467,1775109038427,-70004.60386075,0.00014695,2]
[419281468,1775109038438,-410.175902,0.00014695,2]
[419281469,1775109038460,-20869.95680525,0.00014695,2]
[419281505,1775109040817,-1019.64210675,0.00014695,2]
[419281506,1775109040828,-443.31014124,0.00014695,2]
[419281507,1775109040839,-1032.93872616,0.00014695,2]
[419281508,1775109040924,-1315413.59335785,0.00014695,2]
[419281509,1775109040934,-4100.0,0.000147,5]
[419281510,1775109040943,-13114.90387506,0.00014784,2]
[419281511,1775109040952,-500.0,0.00014784,2]
[419281512,1775109040963,-1000.0,0.00014795,2]
[419281513,1775109040973,-6100.0,0.000148,5]
[419281514,1775109040983,-500.0,0.00014894,2]
[419281515,1775109040992,-500.0,0.00014894,2]
[419281516,1775109041002,-467.61263072,0.00014894,2]
[419281517,1775109041012,-500.0,0.00014894,2]
[419281518,1775109041022,-500.0,0.00014894,2]
[419281519,1775109041031,-503.87158945,0.00014894,2]
[419281520,1775109041041,-500.0,0.00014894,2]
[419281521,1775109041050,-500.0,0.00014894,3]
[419281522,1775109041059,-8200.0,0.000149,5]
[419281523,1775109041068,-284.87,0.00014968,2]
[419281524,1775109041077,-184.33317865,0.00014985,2]
[419281525,1775109041086,-269.61360614,0.00014985,2]
[419281526,1775109041095,-230.47418095,0.00014985,2]
[419281527,1775109041104,-337.97256879,0.00015058,2]
[419281528,1775109041116,-420.0,0.00015084,2]
[419281529,1775109041128,-1965.12,0.00015143,2]
[419281530,1775109041140,-428.08321991,0.00015221,2]
[419281531,1775109041152,-1000.0,0.00015221,2]
[419281532,1775109041164,-1000.0,0.00015221,2]
[419281533,1775109041175,-1000.0,0.00015221,2]
[419281534,1775109041187,-284.88,0.00015242,2]
[419281535,1775109041199,-441.2324925,0.000153,2]
[419281536,1775109041211,-285.20933393,0.000153,2]
[419281537,1775109041222,-382.0,0.000154,2]
[419281538,1775109041233,-169.1295,0.000154,7]
[419281539,1775109041242,-495.97,0.00015433,2]
[419281540,1775109041252,-200.04,0.00015507,2]
[419281541,1775109041262,-743.50770149,0.00015676,2]
[419281542,1775109041273,-495.97,0.00015707,2]
[419281543,1775109041285,-2000.0,0.00015726,2]
[419281544,1775109041296,-332.38601295,0.00015741,2]
[419281545,1775109041306,-1500.0,0.00015768,2]
[419281546,1775109041317,-1001.40120114,0.00015768,2]
[419281547,1775109041328,-1500.0,0.00015768,2]
[419281548,1775109041339,-1965.12,0.00015831,2]
[419281549,1775109041350,-500.0,0.0001589,2]
[419281551,1775109041361,-519.17533645,0.0001589,2]
[419281552,1775109041372,-200.04,0.00015895,2]
[419281553,1775109041383,-400.0,0.0001597,2]
[419281554,1775109041394,-500.70581269,0.0001597,2]
[419281555,1775109041404,-495.97,0.00015981,2]
[419281556,1775109041414,-1000.0,0.00016,2]
[419281557,1775109041425,-351.357,0.00016,2]
[419281558,1775109041435,-211.4,0.00016,2]
[419281559,1775109041446,-211.4,0.00016,2]
[419281561,1775109041457,-211.4,0.00016,2]
[419281562,1775109041469,-278.24927245,0.00016,2]
[419281563,1775109041480,-2809.0,0.0001604,2]
[419281564,1775109041490,-278.24927245,0.000161,2]
[419281565,1775109041501,-500.0,0.00016164,2]
[419281566,1775109041513,-500.0,0.00016164,2]
[419281567,1775109041523,-500.0,0.00016164,2]
[419281568,1775109041534,-500.0,0.00016164,2]
[419281569,1775109041545,-500.0,0.00016164,2]
[419281570,1775109041555,-500.0,0.00016164,2]
[419281571,1775109041566,-500.0,0.00016164,2]
[419281572,1775109041577,-500.0,0.00016164,2]
[419281573,1775109041588,-500.0,0.00016164,2]
[419281574,1775109041599,-500.0,0.00016164,2]
[419281575,1775109041608,-500.0,0.00016164,2]
[419281576,1775109041618,-500.0,0.00016164,2]
[419281577,1775109041628,-500.0,0.00016164,2]
[419281578,1775109041638,-500.0,0.00016164,2]
[419281579,1775109041648,-500.0,0.00016164,2]
[419281580,1775109041660,-500.0,0.00016164,2]
[419281581,1775109041670,-264.44314973,0.00016164,2]
[419281582,1775109041680,-151.3,0.0001617,2]
[419281583,1775109041691,-151.3,0.0001617,2]
[419281584,1775109041702,-151.3,0.0001617,2]
[419281585,1775109041714,-151.29,0.0001617,2]
[419281586,1775109041724,-278.24927245,0.000162,2]
[419281587,1775109041735,-771.01748645,0.00016224,2]
[419281588,1775109041746,-495.97,0.00016255,2]
[419281589,1775109041757,-1294.77452683,0.00016273,2]
[419281590,1775109041768,-200.04,0.00016282,2]
[419281591,1775109041778,-367.40868416,0.00016316,2]
[419281592,1775109041789,-380.70129313,0.00016316,2]
[419281593,1775109041800,-30000.0,0.00016327,2]
[419281594,1775109041811,-225.42759078,0.00016373,2]
[419281595,1775109041822,-181.83603731,0.00016373,2]
[419281596,1775109041833,-500.0,0.00016373,2]
[419281597,1775109041844,-500.91934026,0.00016373,2]
[419281598,1775109041855,-500.0,0.00016373,2]
[419281599,1775109041867,-500.0,0.00016373,2]
[419281600,1775109041879,-500.0,0.00016373,2]
[419281601,1775109041889,-500.0,0.00016373,2]
[419281602,1775109041899,-500.0,0.00016373,2]
[419281603,1775109041909,-501.09616235,0.00016373,2]
[419281604,1775109041919,-418.42031113,0.00016373,2]
[419281605,1775109041929,-500.0,0.00016373,2]
[419281606,1775109041939,-500.0,0.00016373,2]
[419281607,1775109041950,-150.0,0.000164,2]
[419281608,1775109041960,-307.98744808,0.000164,2]
[419281609,1775109041970,-150.0,0.00016438,2]
[419281610,1775109041981,-2500.0,0.00016438,2]
[419281611,1775109041993,-2500.0,0.00016438,2]
[419281612,1775109042004,-2500.0,0.00016438,2]
[419281613,1775109042015,-2500.0,0.00016438,2]
[419281614,1775109042024,-2500.0,0.00016438,2]
[419281615,1775109042034,-2500.0,0.00016438,2]
[419281616,1775109042044,-2500.0,0.00016438,2]
[419281617,1775109042054,-2500.0,0.00016438,2]
[419281618,1775109042065,-2500.0,0.00016438,2]
[419281619,1775109042075,-2500.0,0.00016438,2]
[419281620,1775109042086,-2500.0,0.00016438,2]
[419281621,1775109042097,-904.30822629,0.00016438,2]
[419281622,1775109042108,-150.46,0.00016438,2]
[419281623,1775109042119,-1965.12,0.00016519,2]
[419281624,1775109042130,-374.4,0.00016529,2]
[419281625,1775109042140,-587.0,0.00016529,2]
[419281626,1775109042150,-190.6987,0.000166,12]
[419281627,1775109042160,-200.04,0.0001667,2]
[419281628,1775109042177,-400.0,0.0001677,2]
[419281629,1775109042187,-799.54513345,0.00016772,2]
[419281630,1775109042196,-1000.0,0.00016921,2]
[419281631,1775109042206,-500.0,0.00016921,2]
[419281632,1775109042216,-1000.0,0.00016921,2]
[419281633,1775109042227,-1000.0,0.00016921,2]
[419281634,1775109042237,-275.47720931,0.00016921,2]
[419281635,1775109042247,-682.99266599,0.00016921,2]
[419281636,1775109042258,-530.89693021,0.0001697,2]
[419281637,1775109042269,-400.0,0.0001697,2]
[419281638,1775109042279,-8189.54886437,0.00017005,2]
[419281639,1775109042290,-15779.79709209,0.00017008,2]
[419281640,1775109042300,-214.36442557,0.00017008,2]
[419281641,1775109042311,-2741.01519259,0.00017008,2]
[419281642,1775109042322,-2375.3434491,0.00017026,2]
[419281643,1775109042333,-200.04,0.00017058,2]
[419281644,1775109042343,-1046.0,0.00017108,2]
[419281645,1775109042354,-3520.0,0.00017108,2]
[419281646,1775109042365,-621.0,0.00017108,2]
[419281647,1775109042375,-1355.434,0.00017108,2]
[419281648,1775109042386,-150.0,0.00017108,2]
[419281649,1775109042397,-1263.0,0.00017108,2]
[419281650,1775109042408,-415.0,0.00017108,2]
[419281651,1775109042419,-3768.0,0.00017108,2]
[419281652,1775109042429,-1550.0,0.00017117,2]
[419281653,1775109042440,-1550.0,0.00017147,2]
[419281654,1775109042451,-377.625817,0.0001718,7]
[419281655,1775109042461,-178.875387,0.0001718,7]
[419281656,1775109042472,-1550.0,0.00017216,2]
[419281657,1775109042482,-370.23004,0.00017225,7]
[419281658,1775109042494,-411.293788,0.00017225,7]
[419281659,1775109042505,-1550.0,0.00017282,2]
[419281660,1775109042515,-1550.0,0.00017301,2]
[419281661,1775109042526,-708.92359136,0.0001732,2]
[419281662,1775109042536,-1503.04138262,0.00017468,2]
[419281663,1775109042546,-744.6131476,0.00017468,2]
[419281664,1775109042556,-261.58740434,0.00017468,2]
[419281665,1775109042567,-2000.0,0.00017474,2]
[419281666,1775109042577,-1550.0,0.00017531,2]
[419281667,1775109042587,-354.609693,0.00017564,7]
[419281668,1775109042597,-500.0,0.00017577,2]
[419281669,1775109042607,-305.56026764,0.00017577,2]
[419281670,1775109042617,-500.0,0.00017577,2]
[419281671,1775109042627,-500.0,0.00017577,2]
[419281672,1775109042637,-500.0,0.00017577,2]
[419281673,1775109042647,-500.0,0.00017577,2]
[419281674,1775109042657,-500.0,0.00017577,2]
[419281675,1775109042668,-500.0,0.00017577,2]
[419281676,1775109042678,-500.0,0.00017577,2]
[419281677,1775109042688,-500.0,0.00017577,2]
[419281678,1775109042698,-500.0,0.00017577,2]
[419281679,1775109042708,-500.0,0.00017577,2]
[419281680,1775109042719,-429.60065942,0.00017577,2]
[419281681,1775109042729,-500.0,0.00017577,2]
[419281682,1775109042739,-500.0,0.00017577,2]
[419281683,1775109042749,-500.0,0.00017577,2]
[419281684,1775109042759,-500.0,0.00017577,2]
[419281685,1775109042769,-500.0,0.00017577,2]
[419281686,1775109042779,-500.0,0.00017577,2]
[419281687,1775109042788,-500.0,0.00017577,2]
[419281688,1775109042798,-500.0,0.00017577,2]
[419281689,1775109042808,-500.0,0.00017577,2]
[419281690,1775109042820,-151.0,0.00017577,2]
[419281691,1775109042831,-500.0,0.00017577,2]
[419281692,1775109042843,-500.0,0.00017577,2]
[419281693,1775109042855,-500.0,0.00017577,2]
[419281694,1775109042867,-500.0,0.00017577,2]
[419281695,1775109042878,-500.0,0.00017577,2]
[419281696,1775109042890,-250.0,0.00017577,2]
[419281697,1775109042901,-204.7646566,0.00017577,2]
[419281698,1775109042912,-171.67473907,0.00017577,2]
[419281699,1775109042922,-174.61919141,0.00017577,2]
[419281704,1775109043945,-170.0,0.00017577,2]
[419281705,1775109043979,-170.0,0.00017577,2]
[419281706,1775109043990,-170.0,0.00017577,2]
[419281707,1775109044001,-170.0,0.00017577,2]
[419281708,1775109044011,-170.0,0.00017577,2]
[419281709,1775109044020,-170.0,0.00017577,2]
[419281710,1775109044030,-170.0,0.00017577,2]
[419281711,1775109044039,-170.0,0.00017577,2]
[419281712,1775109044050,-250.0,0.00017577,2]
[419281713,1775109044059,-250.0,0.00017577,2]
[419281714,1775109044068,-250.0,0.00017577,2]
[419281715,1775109044078,-250.0,0.00017577,2]
[419281716,1775109044089,-250.0,0.00017577,2]
[419281717,1775109044098,-250.0,0.00017577,2]
[419281718,1775109044107,-250.0,0.00017577,2]
[419281719,1775109044117,-250.0,0.00017577,2]
[419281720,1775109044126,-250.0,0.00017577,2]
[419281721,1775109044136,-150.0,0.00017608,30]
[419281722,1775109044145,-151.0,0.00017632,2]
[419281723,1775109044154,-1550.0,0.00017683,2]
[419281724,1775109044164,-151.0,0.00017687,2]
[419281725,1775109044173,-1550.0,0.00017734,2]
[419281726,1775109044183,-151.0,0.00017742,2]
[419281727,1775109044192,-1550.0,0.00017786,2]
[419281728,1775109044202,-151.0,0.00017797,2]
[419281729,1775109044213,-215.0186,0.000178,17]
[419281730,1775109044223,-151.0,0.00017852,2]
[419281731,1775109044233,-1550.0,0.00017859,2]